bitfinex/quotes_BTCUSD_20250101
["timestamp","ask_amount","ask_price","bid_price","bid_amount"]
[1735754883788,0.0001706,94169.0,94168.0,0.46447163]
[1735754883999,0.0001706,94169.0,94168.0,0.46947163]
[1735754885664,0.0001706,94169.0,94168.0,0.42724694]
[1735754886590,0.0001706,94169.0,94168.0,0.63963294]
[1735754887880,0.0001706,94169.0,94168.0,0.42724694]
[1735754889139,0.0001706,94169.0,94168.0,0.63963294]
[1735754889390,0.0001706,94169.0,94168.0,0.98963294]
[1735754889592,0.0001706,94169.0,94168.0,1.09361926]
[1735754898151,0.0001706,94169.0,94168.0,0.88963294]
[1735754898321,0.0001706,94169.0,94168.0,0.98963294]
[1735754898571,0.0001706,94169.0,94168.0,0.88963294]
[1735754898772,0.0001706,94169.0,94168.0,0.79063294]
[1735754898989,0.0001706,94169.0,94168.0,0.88963294]
[1735754899312,0.0001706,94169.0,94168.0,0.79063294]
[1735754899520,0.0001706,94169.0,94168.0,0.88963294]
[1735754900155,0.0001706,94169.0,94168.0,0.79063294]
[1735754900399,0.0001706,94169.0,94168.0,0.88963294]
[1735754901413,0.0001706,94169.0,94168.0,0.98963294]
[1735754902606,0.0001706,94169.0,94168.0,1.08082028]
[1735754903414,0.0001706,94169.0,94168.0,1.06682028]
[1735754903792,0.0001706,94169.0,94168.0,1.07582028]
[1735754903989,0.0001706,94169.0,94168.0,1.06682028]
[1735754904417,0.0001706,94169.0,94168.0,1.07582028]
[1735754904675,0.0001706,94169.0,94168.0,1.07982028]
[1735754905059,0.0001706,94169.0,94168.0,1.07582028]
[1735754905294,0.0001706,94169.0,94168.0,1.06682028]
[1735754905944,0.0001706,94169.0,94168.0,0.97582028]
[1735754905945,0.0011706,94169.0,94168.0,0.97582028]
[1735754906190,0.0011706,94169.0,94168.0,0.67224694]
[1735754906585,0.0011706,94169.0,94168.0,0.68124694]
[1735754907445,0.0011706,94169.0,94168.0,0.67224694]
[1735754907911,0.0001706,94169.0,94168.0,0.66324694]
[1735754908111,0.0011706,94169.0,94168.0,0.67224694]
[1735754908331,0.0011706,94169.0,94168.0,0.68124694]
[1735754908572,0.0001706,94169.0,94168.0,0.52224694]
[1735754909052,0.0011706,94169.0,94168.0,0.53124694]
[1735754910693,0.0011706,94169.0,94168.0,0.43124694]
[1735754911199,0.0011706,94169.0,94168.0,0.28054694]
[1735754912330,0.0001706,94169.0,94168.0,0.27154694]
[1735754912597,0.0011706,94169.0,94168.0,0.27854694]
[1735754912846,0.0011706,94169.0,94168.0,0.26954694]
[1735754913090,0.0011706,94169.0,94168.0,0.27854694]
[1735754913345,0.0011706,94169.0,94168.0,0.26954694]
[1735754913830,0.0001706,94169.0,94168.0,0.27154694]
[1735754914064,0.0001706,94169.0,94168.0,0.26254694]
[1735754914330,0.0001706,94169.0,94168.0,0.27654694]
[1735754914822,0.0001706,94169.0,94168.0,0.27154694]
[1735754915061,0.0001706,94169.0,94168.0,0.27654694]
[1735754915742,0.0001706,94169.0,94168.0,0.13499394]
[1735754915744,0.0001706,94169.0,94168.0,0.23399394]
[1735754916217,0.0001706,94169.0,94168.0,0.13499394]
[1735754916220,0.0001706,94169.0,94168.0,0.23399394]
[1735754916463,0.0001706,94169.0,94168.0,0.13499394]
[1735754916678,0.0001706,94169.0,94168.0,0.22499394]
[1735754916926,0.0001706,94169.0,94168.0,0.22899394]
[1735754917101,0.0001706,94169.0,94168.0,0.23399394]
[1735754917328,0.0001706,94169.0,94168.0,0.22499394]
[1735754917534,0.0001706,94169.0,94168.0,0.22899394]
[1735754918042,0.0001706,94169.0,94168.0,0.23399394]
[1735754918216,0.0001706,94169.0,94168.0,0.22499394]
[1735754919641,0.0001706,94169.0,94168.0,0.23399394]
[1735754920270,0.0001706,94169.0,94168.0,0.22499394]
[1735754920535,0.0001706,94169.0,94168.0,0.21999394]
[1735754920735,0.0001706,94169.0,94168.0,0.23399394]
[1735754920939,0.0001706,94169.0,94168.0,0.22499394]
[1735754921267,0.0001706,94169.0,94168.0,0.23399394]
[1735754921484,0.0001706,94169.0,94168.0,0.22899394]
[1735754921896,0.0001706,94169.0,94168.0,0.23299394]
[1735754922646,0.0001706,94169.0,94168.0,0.22399394]
[1735754922851,0.0001706,94169.0,94168.0,0.21999394]
[1735754923061,0.0001706,94169.0,94168.0,0.22899394]
[1735754923257,0.0001706,94169.0,94168.0,0.22499394]
[1735754923961,0.0001706,94169.0,94168.0,0.22899394]
[1735754924162,0.0001706,94169.0,94168.0,0.23399394]
[1735754924582,0.0001706,94169.0,94168.0,0.22499394]
[1735754924775,0.0001706,94169.0,94168.0,0.21999394]
[1735754925995,0.0001706,94169.0,94168.0,0.23299394]
[1735754926218,0.0001706,94169.0,94168.0,0.02100762]
[1735754926411,0.0001706,94169.0,94168.0,0.03000762]
[1735754926412,0.0812706,94169.0,94168.0,0.03000762]
[1735754926736,0.0812706,94169.0,94168.0,8.537e-05]
[1735754926939,0.0812706,94169.0,94168.0,0.00508537]
[1735754927151,0.0812706,94169.0,94168.0,0.01408537]
[1735754927357,0.0812706,94169.0,94168.0,8.537e-05]
[1735754927561,0.0812706,94169.0,94168.0,0.00208537]
[1735754927761,0.0812706,94169.0,94168.0,0.00808537]
[1735754929412,0.1302,94168.0,94154.0,8.54e-05]
[1735754929630,0.492615,94155.0,94154.0,8.54e-05]
[1735754929837,1.292387,94155.0,94154.0,8.54e-05]
[1735754930042,1.176946,94155.0,94154.0,8.54e-05]
[1735754931209,1.150454,94155.0,94154.0,8.54e-05]
[1735754931410,1.024927,94155.0,94154.0,8.54e-05]
[1735754931791,1.23514178,94155.0,94154.0,8.54e-05]
[1735754931924,1.24014178,94155.0,94154.0,8.54e-05]
[1735754932129,0.94154878,94155.0,94154.0,8.54e-05]
[1735754932358,0.70161121,94155.0,94154.0,8.54e-05]
[1735754932555,0.70661121,94155.0,94154.0,8.54e-05]
[1735754932876,0.62295343,94155.0,94154.0,8.54e-05]
[1735754933125,0.62595343,94155.0,94154.0,8.54e-05]
[1735754933326,0.47809243,94155.0,94154.0,8.54e-05]
[1735754933501,0.73509443,94155.0,94154.0,8.54e-05]
[1735754935290,0.73009443,94155.0,94154.0,8.54e-05]
[1735754935696,0.73309443,94155.0,94154.0,8.54e-05]
[1735754936066,0.70361143,94155.0,94154.0,8.54e-05]
[1735754936262,0.70061143,94155.0,94154.0,8.54e-05]
[1735754936706,0.70261143,94155.0,94154.0,8.54e-05]
[1735754936908,0.68434543,94155.0,94154.0,8.54e-05]
[1735754937112,0.47784043,94155.0,94154.0,8.54e-05]
[1735754937264,0.46308743,94155.0,94154.0,8.54e-05]
[1735754938954,0.46008743,94155.0,94154.0,8.54e-05]
[1735754939154,0.46108743,94155.0,94154.0,8.54e-05]
[1735754939524,0.46308743,94155.0,94154.0,8.54e-05]
[1735754939874,0.46608743,94155.0,94154.0,8.54e-05]
[1735754940177,0.45808743,94155.0,94154.0,8.54e-05]
[1735754940372,0.46008743,94155.0,94154.0,8.54e-05]
[1735754940882,0.45808743,94155.0,94154.0,8.54e-05]
[1735754941032,0.46008743,94155.0,94154.0,8.54e-05]
[1735754941442,0.46308743,94155.0,94154.0,8.54e-05]
[1735754941648,0.46008743,94155.0,94154.0,8.54e-05]
[1735754942041,0.46308743,94155.0,94154.0,8.54e-05]
[1735754942234,0.46108743,94155.0,94154.0,8.54e-05]
[1735754942475,0.46408743,94155.0,94154.0,8.54e-05]
[1735754942731,0.46608743,94155.0,94154.0,8.54e-05]
[1735754943123,0.46408743,94155.0,94154.0,8.54e-05]
[1735754943314,0.46008743,94155.0,94154.0,8.54e-05]
[1735754944490,0.34189243,94155.0,94154.0,8.54e-05]
[1735754945251,0.005,94155.0,94154.0,0.0990854]
[1735754945452,0.005,94155.0,94154.0,0.25333873]
[1735754945453,0.002,94155.0,94154.0,0.25333873]
[1735754945650,0.212403,94161.0,94159.0,0.099]
[1735754946238,0.212403,94161.0,94160.0,0.01551626]
[1735754948556,0.212403,94161.0,94160.0,0.01951626]
[1735754949170,0.212403,94161.0,94160.0,0.11951626]
[1735754949711,0.212403,94161.0,94160.0,0.11851626]
[1735754949849,0.212403,94161.0,94160.0,0.11951626]
[1735754950338,0.15,94166.0,94165.0,0.099]
[1735754951013,0.15,94166.0,94165.0,0.11451626]
[1735754951548,0.465261,94166.0,94165.0,0.11451626]
[1735754951750,0.465261,94166.0,94165.0,0.11551626]
[1735754951950,0.465261,94166.0,94165.0,0.099]
[1735754952227,0.465261,94166.0,94165.0,0.101]
[1735754952470,0.465261,94166.0,94165.0,0.099]
[1735754952906,0.465261,94166.0,94165.0,0.104]
[1735754953111,0.465261,94166.0,94165.0,0.099]
[1735754953285,0.36239,94166.0,94165.0,0.104]
[1735754953496,0.464767,94166.0,94165.0,0.104]
[1735754953798,0.212389,94167.0,94165.0,0.106]
[1735754954220,0.212389,94167.0,94166.0,0.01551626]
[1735754954652,0.212389,94167.0,94165.0,0.101]
[1735754955008,0.212389,94167.0,94165.0,0.102]
[1735754955368,0.212389,94167.0,94165.0,0.1]
[1735754955524,0.212389,94167.0,94166.0,0.01]
[1735754955721,0.212389,94167.0,94166.0,0.013]
[1735754955929,0.212389,94167.0,94166.0,0.01]
[1735754956330,0.212389,94167.0,94165.0,0.103]
[1735754956527,0.212389,94167.0,94165.0,0.099]
[1735754956756,0.212389,94167.0,94166.0,0.1757]
[1735754956955,0.212379,94172.0,94166.0,0.1757]
[1735754956956,0.212379,94172.0,94168.0,0.099]
[1735754957174,0.212379,94172.0,94168.0,0.20298632]
[1735754957356,0.212379,94172.0,94168.0,0.21849233]
[1735754958713,0.212379,94172.0,94168.0,0.22249233]
[1735754959112,0.212379,94172.0,94168.0,0.22449233]
[1735754959313,0.212379,94172.0,94168.0,0.25451156]
[1735754960353,0.212379,94172.0,94168.0,0.22449233]
[1735754963194,0.212379,94172.0,94168.0,0.27369233]
[1735754963617,0.212369,94176.0,94168.0,0.34939233]
[1735754964821,0.212376,94173.0,94168.0,0.34939233]
[1735754968286,0.212369,94176.0,94168.0,0.34939233]
[1735754968489,0.114856,94175.0,94169.0,0.10398632]
[1735754968673,0.212376,94173.0,94169.0,0.10398632]
[1735754968852,0.212376,94173.0,94169.0,0.11948775]
[1735754971193,0.212376,94173.0,94169.0,0.12048775]
[1735754971489,0.212376,94173.0,94170.0,0.042558]
[1735754971713,0.212376,94173.0,94171.0,0.10398632]
[1735754972101,0.212376,94173.0,94172.0,0.11450143]
[1735754974278,0.212376,94173.0,94172.0,0.11550143]
[1735754974480,0.212376,94173.0,94172.0,0.11750143]
[1735754977293,0.00160138,94179.0,94178.0,0.099]
[1735754977507,0.0016511,94179.0,94178.0,0.1765]
[1735754977727,4.972e-05,94179.0,94178.0,0.1765]
[1735754977927,4.972e-05,94179.0,94178.0,0.19199426]
[1735754978736,0.00104972,94179.0,94178.0,0.19999426]
[1735754978877,4.972e-05,94179.0,94178.0,0.19199426]
[1735754979345,0.00104972,94179.0,94178.0,0.19999426]
[1735754980356,0.00104972,94179.0,94178.0,0.20299426]
[1735754986357,0.00104972,94179.0,94178.0,0.10399426]
[1735754986559,0.15030391,94179.0,94178.0,0.02649426]
[1735754986963,0.15030391,94179.0,94178.0,0.011]
[1735754993002,0.15047451,94179.0,94178.0,0.011]
[1735754994452,0.30047451,94179.0,94178.0,0.011]
[1735755003052,0.15290051,94179.0,94178.0,0.011]
[1735755003259,0.88199951,94179.0,94178.0,0.011]
[1735755003605,1.12062929,94179.0,94178.0,0.011]
[1735755004370,1.08166429,94179.0,94178.0,0.011]
[1735755004570,0.96484829,94179.0,94178.0,0.011]
[1735755005913,0.95470429,94179.0,94178.0,0.011]
[1735755006574,0.84860329,94179.0,94178.0,0.011]
[1735755006987,0.83470429,94179.0,94178.0,0.011]
[1735755007761,0.59607451,94179.0,94178.0,0.011]
[1735755009207,0.59507451,94179.0,94169.0,8.53e-05]
[1735755009499,0.15,94177.0,94169.0,8.53e-05]
[1735755009699,0.212381,94170.0,94169.0,0.0990853]
[1735755009901,0.362381,94170.0,94169.0,0.0990853]
[1735755011194,0.47132859,94170.0,94169.0,8.53e-05]
[1735755011400,0.71099529,94170.0,94169.0,8.53e-05]
[1735755012023,0.60375129,94170.0,94169.0,0.1000853]
[1735755012224,0.36408459,94170.0,94169.0,0.1000853]
[1735755012502,0.36408459,94170.0,94169.0,0.1020853]
[1735755012864,0.60375129,94170.0,94169.0,0.1020853]
[1735755013364,0.60375129,94170.0,94169.0,0.1000853]
[1735755013581,0.81488929,94170.0,94169.0,0.1010853]
[1735755014117,0.57522259,94170.0,94169.0,0.1000853]
[1735755014332,0.36408459,94170.0,94169.0,0.1000853]
[1735755015119,0.49417459,94170.0,94169.0,0.0010853]
[1735755015531,0.46763759,94170.0,94169.0,0.0010853]
[1735755015730,0.36408459,94170.0,94169.0,0.1000853]
[1735755016105,0.36408459,94170.0,94169.0,0.0010853]
[1735755016537,0.57783759,94170.0,94169.0,0.0010853]
[1735755016935,0.36408459,94170.0,94169.0,0.1000853]
[1735755017256,0.36408459,94170.0,94169.0,0.0010853]
[1735755017464,0.58152559,94170.0,94169.0,0.0010853]
[1735755019531,0.58152559,94170.0,94169.0,8.53e-05]
[1735755019841,0.58152559,94170.0,94169.0,0.0010853]
[1735755020029,0.58152559,94170.0,94169.0,8.53e-05]
[1735755021197,0.58252559,94170.0,94169.0,8.53e-05]
[1735755021399,0.8718476,94170.0,94169.0,8.53e-05]
[1735755021598,0.8698476,94170.0,94169.0,8.53e-05]
[1735755022046,0.8718476,94170.0,94169.0,8.53e-05]
[1735755022388,0.58452559,94170.0,94169.0,8.53e-05]
[1735755028311,0.68851191,94170.0,94169.0,3e-07]
[1735755028516,0.47107091,94170.0,94169.0,3e-07]
[1735755028728,0.54797091,94170.0,94169.0,3e-07]
[1735755029714,0.54814151,94170.0,94169.0,3e-07]
[1735755034190,0.362388,94167.0,94166.0,6e-07]
[1735755034437,0.46637432,94167.0,94166.0,6e-07]
[1735755035765,0.21504864,94167.0,94166.0,6e-07]
[1735755035961,0.212385,94169.0,94166.0,6e-07]
[1735755035962,0.10298751,94169.0,94166.0,6e-07]
[1735755036162,0.212388,94167.0,94166.0,6e-07]
[1735755036864,0.214388,94167.0,94166.0,6e-07]
[1735755037377,0.213388,94167.0,94166.0,6e-07]
[1735755037778,0.214388,94167.0,94166.0,6e-07]
[1735755038141,0.363388,94167.0,94166.0,6e-07]
[1735755038341,0.364388,94167.0,94166.0,6e-07]
[1735755040225,0.363388,94167.0,94166.0,6e-07]
[1735755040715,0.364388,94167.0,94166.0,6e-07]
[1735755041103,0.362388,94167.0,94166.0,6e-07]
[1735755041463,0.364388,94167.0,94166.0,6e-07]
[1735755041890,0.46837432,94167.0,94166.0,6e-07]
[1735755042094,0.47008749,94167.0,94166.0,6e-07]
[1735755042292,0.46908749,94167.0,94166.0,6e-07]
[1735755042496,0.47608749,94167.0,94166.0,6e-07]
[1735755042878,0.47508749,94167.0,94166.0,6e-07]
[1735755043079,0.47808749,94167.0,94166.0,6e-07]
[1735755043292,2.591962,94166.0,94151.0,0.0002]
[1735755043598,0.362422,94152.0,94151.0,0.0002]
[1735755043805,0.362426,94150.0,94149.0,3e-07]
[1735755043975,0.46641232,94150.0,94149.0,3e-07]
[1735755044183,0.46812549,94150.0,94149.0,3e-07]
[1735755045072,0.46817519,94150.0,94149.0,3e-07]
[1735755045302,0.47717519,94150.0,94149.0,3e-07]
[1735755045499,0.362438,94145.0,94137.0,0.0812]
[1735755045700,2.967199,94145.0,94137.0,0.0812]
[1735755045876,3.03981017,94145.0,94137.0,0.0812]
[1735755046080,3.03981017,94145.0,94130.0,0.0463]
[1735755046287,3.03981017,94145.0,94132.0,0.0812]
[1735755046890,3.02909417,94145.0,94132.0,0.0812]
[1735755047132,2.97069717,94145.0,94132.0,0.0812]
[1735755047932,3.07468349,94145.0,94132.0,0.0812]
[1735755048150,3.07468349,94145.0,94144.0,3e-07]
[1735755048426,0.47013749,94145.0,94144.0,3e-07]
[1735755050867,0.47013749,94145.0,94118.0,0.0865533]
[1735755050868,0.362487,94123.0,94118.0,0.0865533]
[1735755051062,1.053421,94123.0,94118.0,0.1328533]
[1735755051262,1.055074,94123.0,94122.0,0.0195949]
[1735755051528,1.055074,94123.0,94122.0,8.53e-05]
[1735755051749,1.05678895,94123.0,94122.0,8.53e-05]
[1735755053023,1.55678895,94123.0,94122.0,8.53e-05]
[1735755054219,1.55878895,94123.0,94122.0,8.53e-05]
[1735755054909,1.55678895,94123.0,94122.0,8.53e-05]
[1735755055380,1.55878895,94123.0,94122.0,8.53e-05]
[1735755055555,1.54535495,94123.0,94122.0,8.53e-05]
[1735755057344,0.970321,94123.0,94122.0,0.0787853]
[1735755058465,0.968321,94123.0,94122.0,0.0787853]
[1735755058990,0.968321,94123.0,94122.0,0.0797853]
[1735755059385,0.968321,94123.0,94122.0,0.0817853]
[1735755059899,0.968321,94123.0,94122.0,0.0807853]
[1735755060107,0.968321,94123.0,94122.0,0.0827853]
[1735755060451,0.968321,94123.0,94122.0,0.0807853]
[1735755060683,0.968321,94123.0,94122.0,0.0787853]
[1735755060884,0.968321,94123.0,94122.0,0.0817853]
[1735755061828,0.968321,94123.0,94122.0,0.0807853]
[1735755062034,0.968321,94123.0,94122.0,0.0787853]
[1735755062451,0.968321,94123.0,94122.0,0.0797853]
[1735755062656,0.968321,94123.0,94122.0,0.0807853]
[1735755063060,0.968321,94123.0,94122.0,0.0797853]
[1735755063498,0.968321,94123.0,94122.0,0.0807853]
[1735755067849,0.605834,94123.0,94122.0,0.09402916]
[1735755068054,0.5,94123.0,94122.0,0.2276853]
[1735755068292,0.5,94123.0,94122.0,0.24721442]
[1735755069024,0.65,94123.0,94122.0,0.24721442]
[1735755070283,0.65,94123.0,94122.0,0.35120074]
[1735755070284,0.5,94123.0,94122.0,0.35120074]
[1735755076604,0.21248,94127.0,94122.0,0.35120074]
[1735755076807,0.15,94126.0,94123.0,0.18708632]
[1735755077006,0.15,94126.0,94124.0,0.0831]
[1735755077224,0.15,94126.0,94125.0,0.10398632]
[1735755077373,0.15,94126.0,94125.0,0.12351544]
[1735755078314,0.15,94126.0,94125.0,0.20661544]
[1735755078575,0.15,94126.0,94125.0,0.20761544]
[1735755079986,0.15,94126.0,94125.0,0.20861544]
[1735755080976,0.15,94126.0,94125.0,0.23545752]
[1735755081182,0.21423728,94138.0,94132.0,0.1]
[1735755081341,0.212454,94138.0,94136.0,0.1]
[1735755081546,0.362454,94138.0,94137.0,0.10262567]
[1735755082337,0.364454,94138.0,94137.0,0.20262567]
[1735755082907,0.362454,94138.0,94137.0,0.20262567]
[1735755083035,0.362454,94138.0,94137.0,0.20462567]
[1735755083442,0.47934,94138.0,94137.0,0.20462567]
[1735755084059,0.362454,94138.0,94137.0,0.20462567]
[1735755084706,0.362454,94138.0,94137.0,0.20762567]
[1735755085306,0.481156,94138.0,94137.0,0.20762567]
[1735755086149,0.362454,94138.0,94137.0,0.20762567]
[1735755087169,0.362454,94138.0,94137.0,0.31161199]
[1735755089251,0.15,94138.0,94137.0,0.31161199]
[1735755089451,0.15,94138.0,94137.0,0.34760319]
[1735755089899,0.15,94138.0,94137.0,0.31161199]
[1735755094588,0.15,94138.0,94137.0,0.30961199]
[1735755094921,0.15,94138.0,94137.0,0.31061199]
[1735755095121,0.15,94138.0,94137.0,0.30761199]
[1735755096420,0.15,94138.0,94137.0,0.30961199]
[1735755101713,0.15,94138.0,94137.0,0.30969729]
[1735755104961,0.15,94138.0,94137.0,0.30869729]
[1735755106546,0.15,94138.0,94137.0,0.31069729]
[1735755108342,0.15,94138.0,94137.0,0.22759729]
[1735755108719,0.151833,94138.0,94137.0,0.22759729]
[1735755108955,0.151833,94138.0,94137.0,0.02361097]
[1735755109627,0.886422,94138.0,94137.0,0.0040853]
[1735755109820,0.88626,94138.0,94137.0,0.0040853]
[1735755109979,0.868098,94138.0,94137.0,0.0040853]
[1735755110185,0.868098,94138.0,94137.0,0.0020853]
[1735755110502,0.868098,94138.0,94137.0,0.0010853]
[1735755110703,0.868098,94138.0,94137.0,0.0030853]
[1735755110902,0.868098,94138.0,94137.0,0.0020853]
[1735755111358,0.868098,94138.0,94137.0,0.0050853]
[1735755111566,0.646799,94138.0,94137.0,0.0050853]
[1735755111698,0.573563,94138.0,94137.0,0.0050853]
[1735755111904,0.526439,94138.0,94137.0,0.0050853]
[1735755112685,0.151833,94138.0,94137.0,0.0050853]
[1735755116682,0.15,94138.0,94137.0,0.0050853]
[1735755117057,0.277794,94138.0,94137.0,0.0050853]
[1735755117261,0.15,94138.0,94137.0,0.0050853]
[1735755122695,0.25903,94138.0,94137.0,0.0050853]
[1735755122894,0.15,94138.0,94137.0,0.0050853]
[1735755124937,0.15,94138.0,94137.0,0.19669383]
[1735755125127,0.15,94138.0,94137.0,0.24429383]
[1735755125304,0.15,94138.0,94137.0,0.36778821]
[1735755126283,0.15,94138.0,94137.0,0.36378821]
[1735755126524,0.15,94138.0,94137.0,0.36578821]
[1735755126705,0.15,94138.0,94137.0,0.36478821]
[1735755126908,0.15,94138.0,94137.0,0.36578821]
[1735755127108,0.15,94138.0,94137.0,0.35527968]
[1735755127799,0.15,94143.0,94142.0,0.1]
[1735755128001,0.15,94143.0,94142.0,0.28508632]
[1735755128355,0.15,94143.0,94142.0,0.30459438]
[1735755129168,0.1501706,94144.0,94142.0,0.30459438]
[1735755129350,0.27382221,94146.0,94143.0,0.13951429]
[1735755129909,0.00588241,94146.0,94145.0,0.1]
[1735755130200,0.212437,94146.0,94145.0,0.1]
[1735755130551,0.212437,94146.0,94145.0,0.20060806]
[1735755131093,0.313789,94146.0,94145.0,0.20060806]
[1735755132147,0.313789,94146.0,94145.0,0.12150806]
[1735755132578,0.314789,94146.0,94145.0,0.102]
[1735755132909,0.313789,94146.0,94145.0,0.102]
[1735755133120,0.314789,94146.0,94145.0,0.104]
[1735755133479,0.314789,94146.0,94145.0,0.004]
[1735755135338,0.314789,94146.0,94137.0,8.53e-05]
[1735755135339,0.362454,94138.0,94137.0,8.53e-05]
[1735755135776,0.36429213,94138.0,94137.0,8.53e-05]
[1735755136580,2.61830713,94138.0,94137.0,8.53e-05]
[1735755136883,2.61983513,94138.0,94137.0,0.0010853]
[1735755137322,2.61983513,94138.0,94137.0,8.53e-05]
[1735755137536,2.62083513,94138.0,94137.0,8.53e-05]
[1735755137742,2.61883513,94138.0,94137.0,8.53e-05]
[1735755139009,2.62083513,94138.0,94137.0,8.53e-05]
[1735755139812,0.36629213,94138.0,94137.0,8.53e-05]
[1735755140185,2.34028313,94138.0,94137.0,8.53e-05]
[1735755141046,2.19522113,94138.0,94137.0,8.53e-05]
[1735755141187,1.94418713,94138.0,94137.0,8.53e-05]
[1735755141396,1.60251413,94138.0,94137.0,8.53e-05]
[1735755141954,1.57478813,94138.0,94137.0,8.53e-05]
[1735755142586,1.19868313,94138.0,94137.0,8.53e-05]
[1735755142928,1.17186213,94138.0,94137.0,8.53e-05]
[1735755143899,0.570107,94138.0,94137.0,8.53e-05]
[1735755144075,0.41727113,94138.0,94137.0,8.53e-05]
[1735755144314,0.41029513,94138.0,94137.0,8.53e-05]
[1735755144464,0.41029513,94138.0,94137.0,0.01951859]
[1735755144865,0.356029,94138.0,94137.0,0.01951859]
[1735755145070,0.002,94138.0,94137.0,0.11951859]
[1735755145272,0.21244,94144.0,94137.0,0.11951859]
[1735755145592,0.212439,94145.0,94137.0,0.12051859]
[1735755145593,0.001,94138.0,94137.0,0.12051859]
[1735755145799,0.001,94138.0,94137.0,0.14533045]
[1735755145999,0.001,94138.0,94137.0,0.25131677]
[1735755146265,0.001,94138.0,94137.0,0.33431677]
[1735755146472,0.0001706,94146.0,94145.0,0.183]
[1735755146933,0.0001706,94146.0,94145.0,0.20243024]
[1735755147540,0.21225072,94148.0,94145.0,0.20443024]
[1735755148104,0.0001706,94146.0,94145.0,0.20443024]
[1735755148717,0.0011706,94146.0,94145.0,0.20343024]
[1735755148919,0.0011706,94146.0,94145.0,0.20443024]
[1735755149603,0.0011706,94146.0,94145.0,0.20343024]
[1735755149799,0.0011706,94146.0,94145.0,0.20543024]
[1735755155526,0.0011706,94146.0,94145.0,0.25133024]
[1735755156196,0.15,94151.0,94147.0,0.1]
[1735755156392,0.574848,94151.0,94147.0,0.1]
[1735755156592,0.574848,94151.0,94147.0,0.12513302]
[1735755156846,0.574848,94151.0,94148.0,0.01942743]
[1735755157270,0.00183971,94169.0,94150.0,0.1]
[1735755157271,0.15,94152.0,94150.0,0.1]
[1735755157473,0.212399,94163.0,94156.0,0.1]
[1735755157909,0.15,94162.0,94156.0,0.1]
[1735755158119,0.212398,94163.0,94161.0,0.1]
[1735755158473,0.15,94162.0,94161.0,0.1]
[1735755159059,0.151,94162.0,94161.0,0.1]
[1735755159697,0.151,94162.0,94161.0,0.102]
[1735755159844,0.152,94162.0,94161.0,0.104]
[1735755160901,0.564388,94162.0,94161.0,0.104]
[1735755161096,0.448819,94162.0,94161.0,0.104]
[1735755161971,0.448819,94162.0,94161.0,0.102]
[1735755162178,0.44865935,94162.0,94161.0,0.101]
[1735755162320,0.44865935,94162.0,94161.0,0.105]
[1735755162822,0.44865935,94162.0,94161.0,0.1]
[1735755162823,0.33964335,94162.0,94161.0,0.1]
[1735755163020,0.31383435,94162.0,94161.0,0.107]
[1735755164460,0.15284035,94162.0,94161.0,0.107]
[1735755164862,0.31323835,94162.0,94161.0,0.107]
[1735755165141,0.15284035,94162.0,94161.0,0.107]
[1735755166041,0.25815235,94162.0,94161.0,0.107]
[1735755166610,0.15284035,94162.0,94161.0,0.107]
[1735755168826,0.15284035,94162.0,94161.0,0.105]
[1735755169003,0.15184035,94162.0,94161.0,0.1]
[1735755169258,0.15,94162.0,94161.0,0.104]
[1735755169765,0.15,94162.0,94161.0,0.12341391]
[1735755172878,0.1501706,94162.0,94161.0,0.12341391]
[1735755174088,0.1501706,94162.0,94161.0,0.12241391]
[1735755174288,0.1501706,94162.0,94161.0,0.12441391]
[1735755174594,0.1501706,94162.0,94161.0,0.12141391]
[1735755174823,0.1501706,94162.0,94161.0,0.11941391]
[1735755174993,0.1511706,94162.0,94161.0,0.12441391]
[1735755175341,0.1501706,94162.0,94161.0,0.12041391]
[1735755175483,0.1501706,94162.0,94161.0,0.12241391]
[1735755175856,0.1501706,94162.0,94161.0,0.12341391]
[1735755176585,0.1501706,94162.0,94161.0,0.02341391]
[1735755180240,0.17747918,94163.0,94161.0,0.02341391]
[1735755181206,0.17747918,94163.0,94161.0,0.01941391]
[1735755181408,0.17747918,94163.0,94161.0,0.02041391]
[1735755181615,0.17747918,94163.0,94161.0,0.02341391]
[1735755184891,0.17764978,94163.0,94161.0,0.02341391]
[1735755187692,0.17764978,94163.0,94161.0,0.12341391]
[1735755189703,0.0001706,94163.0,94162.0,0.20398632]
[1735755189907,0.0001706,94163.0,94162.0,0.32838632]
[1735755190110,0.0001706,94163.0,94162.0,0.34779391]
[1735755190787,0.0001706,94163.0,94162.0,0.34879391]
[1735755191242,0.0001706,94163.0,94162.0,0.36647117]
[1735755191393,0.0001706,94163.0,94162.0,0.35179391]
[1735755194183,0.2125676,94163.0,94162.0,0.35179391]
[1735755194363,0.21440869,94163.0,94162.0,0.35179391]
[1735755196197,0.2125676,94163.0,94162.0,0.35179391]
[1735755197406,0.0001706,94163.0,94162.0,0.35179391]
[1735755200707,0.0001706,94163.0,94162.0,0.34879391]
[1735755200910,0.0001706,94163.0,94162.0,0.35179391]
[1735755201151,0.0001706,94163.0,94162.0,0.35079391]
[1735755201311,0.0001706,94163.0,94162.0,0.34779391]
[1735755201511,0.0011706,94163.0,94162.0,0.35479391]
[1735755201730,0.0011706,94163.0,94162.0,0.41328183]
[1735755202803,0.0011706,94163.0,94162.0,0.41228183]
[1735755203211,0.0011706,94163.0,94162.0,0.41528183]
[1735755203423,0.0001706,94163.0,94162.0,0.40928183]
[1735755203626,0.0011706,94163.0,94162.0,0.41528183]
[1735755203972,0.0011706,94163.0,94162.0,0.41128183]
[1735755204173,0.0021706,94163.0,94162.0,0.42028183]
[1735755204390,0.0021706,94163.0,94162.0,0.41528183]
[1735755204632,0.0001706,94163.0,94162.0,0.40628183]
[1735755204789,0.0021706,94163.0,94162.0,0.42128183]
[1735755206879,0.00174847,94163.0,94162.0,0.42128183]
[1735755208010,0.00174847,94163.0,94162.0,0.42136713]
[1735755208211,0.00191907,94163.0,94162.0,0.42136713]
[1735755211691,0.00191907,94163.0,94162.0,0.52136713]
[1735755211889,0.00191907,94163.0,94162.0,0.73376613]
[1735755219772,0.00191907,94163.0,94162.0,0.52136713]
[1735755219972,0.00191907,94163.0,94162.0,0.48587921]
[1735755225413,0.00191907,94163.0,94162.0,0.38587921]
[1735755226215,0.00191907,94163.0,94162.0,0.48587921]
[1735755226615,0.00191907,94163.0,94162.0,0.58587921]
[1735755228356,0.0011706,94163.0,94162.0,0.57987921]
[1735755228515,0.0021706,94163.0,94162.0,0.58787921]
[1735755229557,0.0021706,94163.0,94162.0,0.57887921]
[1735755229813,0.0011706,94163.0,94162.0,0.57887921]